bitfinex-derivatives/quotes_ETHF0:USTF0_20250902
["timestamp","ask_amount","ask_price","bid_price","bid_amount"]
[1756808050353,1.3158096,4395.7,4395.6,0.7062]
[1756808051352,0.7003,4395.7,4395.6,0.7062]
[1756808051861,0.7003,4395.7,4395.4,0.0343]
[1756808052361,0.7003,4395.5,4395.4,0.0343]
[1756808052658,0.7003,4395.5,4395.4,0.5006]
[1756808053058,0.7003,4395.5,4395.4,0.7062]
[1756808054164,0.4974,4395.5,4395.4,0.7062]
[1756808054455,3.2078,4396.1,4395.5,0.2972]
[1756808054661,1.31567042,4396.0,4395.9,0.2034]
[1756808054959,1.31567042,4396.0,4395.9,0.5006]
[1756808056761,1.31567042,4396.0,4395.9,0.2034]
[1756808057660,0.61537042,4396.0,4395.9,0.7062]
[1756808057860,0.2928,4396.4,4396.3,0.409]
[1756808058058,0.2928,4396.4,4396.3,0.7062]
[1756808058759,5.344,4396.6,4396.3,0.7062]
[1756808058760,5.344,4396.6,4396.3,0.409]
[1756808058966,3.6153,4397.1,4397.0,0.5006]
[1756808059157,4.45949344,4397.1,4397.0,0.7062]
[1756808059558,4.52329344,4397.1,4397.0,0.7062]
[1756808061760,4.52329344,4397.1,4397.0,0.5006]
[1756808069370,3.9081,4397.1,4397.0,0.5006]
[1756808070769,3.9081,4397.1,4396.4,0.2972]
[1756808070971,0.2046,4396.6,4396.5,0.7062]
[1756808071167,0.7003,4396.6,4396.5,0.93364]
[1756808071769,0.7003,4396.6,4396.5,0.7062]
[1756808074871,0.4974,4397.3,4396.6,0.2972]
[1756808075071,0.2928,4397.2,4396.7,3.2078]
[1756808075369,0.7003,4396.3,4396.2,0.7296]
[1756808075573,0.7003,4396.3,4396.2,0.9352]
[1756808088575,0.4974,4396.3,4396.2,0.9352]
[1756808090481,0.2849,4396.6,4396.2,0.9352]
[1756808090681,0.2849,4396.9,4396.8,0.3958]
[1756808090883,0.90078021,4396.9,4396.8,0.6913]
[1756808091069,1.09018021,4396.9,4396.8,0.6913]
[1756808093174,1.28888021,4396.9,4396.8,0.6913]
[1756808094080,0.673,4396.9,4396.8,0.6913]
[1756808095475,1.28874149,4396.9,4396.8,0.6913]
[1756808095679,1.28874149,4396.9,4396.8,0.4906]
[1756808096478,3.2078,4397.6,4396.8,0.3958]
[1756808096679,1.28868877,4397.5,4397.4,0.4906]
[1756808096876,0.673,4397.5,4397.4,0.4906]
[1756808097179,1.28865366,4397.5,4397.4,0.4906]
[1756808097581,1.28865366,4397.5,4397.4,0.6913]
[1756808097780,0.673,4397.5,4397.4,0.6913]
[1756808098577,0.2849,4398.2,4397.5,0.2955]
[1756808098781,0.673,4398.0,4397.9,0.4906]
[1756808098975,1.28826694,4398.0,4397.9,0.4906]
[1756808099282,1.28826694,4398.0,4397.2,0.229]
[1756808099583,0.4743,4397.4,4397.3,0.6913]
[1756808100371,0.2849,4398.2,4397.4,0.2955]
[1756808100679,0.2849,4398.2,4397.3,0.3958]
[1756808100680,0.673,4398.0,4397.9,0.1951]
[1756808100878,1.2880772,4398.0,4397.9,0.4906]
[1756808101281,1.2880772,4398.0,4397.3,0.2955]
[1756808101484,0.4743,4397.4,4397.3,0.6913]
[1756808101983,0.673,4397.4,4397.3,0.6913]
[1756808102584,0.673,4397.4,4397.3,0.9203]
[1756808104886,0.1894,4397.4,4397.3,0.9203]
[1756808105086,0.2849,4398.0,4397.7,0.2955]
[1756808105284,3.4927,4398.3,4397.9,0.6913]
[1756808105479,3.2078,4398.3,4398.2,0.3958]
[1756808105784,3.2078,4398.3,4398.2,0.6913]
[1756808105986,3.3972,4398.3,4398.2,0.6913]
[1756808106382,3.8808,4398.3,4398.2,0.4906]
[1756808108284,3.8808,4398.3,4397.6,40.8]
[1756808108590,0.2849,4397.7,4397.6,40.8]
[1756808108792,0.2849,4397.7,4397.6,41.029]
[1756808108982,0.2849,4397.7,4397.6,41.3146]
[1756808109382,0.4769,4397.7,4397.6,0.9272]
[1756808110390,0.3952,4397.3,4396.9,0.229]
[1756808110689,0.704,4397.0,4396.9,0.7215]
[1756808111491,0.704,4397.0,4396.9,0.9272]
[1756808112791,0.3952,4397.0,4396.9,0.2069]
[1756808113296,0.3952,4397.0,4396.9,0.4925]
[1756808113491,0.704,4397.0,4396.9,0.6982]
[1756808114488,0.3088,4396.9,4396.7,3.2439]
[1756808114693,0.704,4396.8,4396.7,3.2439]
[1756808114895,0.704,4396.8,4396.7,3.4508]
[1756808115389,0.704,4396.8,4396.7,3.7003]
[1756808115687,0.704,4396.8,4396.0,3.2078]
[1756808115894,0.704,4396.2,4396.1,0.6982]
[1756808116085,0.704,4396.2,4396.1,0.2069]
[1756808116290,0.704,4396.2,4396.1,0.4359]
[1756808117396,0.704,4396.2,4396.1,0.9272]
[1756808117699,0.5008,4396.2,4396.1,0.6416]
[1756808117995,0.704,4396.2,4396.1,0.6416]
[1756808118293,0.704,4396.2,4396.1,0.9272]
[1756808118794,0.704,4396.2,4396.0,0.229]
[1756808119993,0.704,4396.2,4395.9,0.0363]
[1756808120192,0.8225,4396.0,4395.9,0.0363]
[1756808120695,4.8225,4396.0,4395.9,0.0363]
[1756808121087,0.3952,4395.5,4395.4,3.7003]
[1756808121285,0.704,4395.5,4395.4,3.7003]
[1756808121897,0.704,4395.5,4395.4,3.906]
[1756808122797,0.192,4395.5,4395.4,3.906]
[1756808123497,0.704,4395.5,4395.4,3.906]
[1756808124297,0.704,4395.5,4395.4,3.2078]
[1756808125599,0.704,4395.5,4395.4,3.4147]
[1756808125796,0.704,4395.5,4395.4,3.7003]
[1756808126098,0.704,4395.5,4395.2,0.2656]
[1756808126294,0.3952,4395.3,4395.2,0.2656]
[1756808126501,0.704,4395.3,4395.2,0.2656]
[1756808127098,0.704,4395.3,4395.2,0.9638]
[1756808127500,0.704,4395.3,4395.2,0.9272]
[1756808129998,0.3088,4395.6,4395.3,0.2856]
[1756808130304,0.5008,4395.6,4395.5,0.6982]
[1756808130494,3.2078,4395.7,4395.6,0.2856]
[1756808130701,3.2078,4395.7,4395.6,0.6982]
[1756808131309,3.3998,4395.7,4395.6,0.6982]
[1756808131603,3.7086,4395.7,4395.6,0.6982]
[1756808132106,3.9118,4395.7,4395.6,0.6982]
[1756808132502,3.9118,4395.7,4395.4,0.037]
[1756808132802,3.9118,4395.7,4395.4,0.3226]
[1756808133205,3.9118,4395.7,4395.4,0.037]
[1756808134696,3.9118,4395.7,4395.4,0.3226]
[1756808135096,0.8225,4395.5,4395.4,0.037]
[1756808135502,0.3088,4395.4,4394.8,3.4368]
[1756808135714,0.704,4394.9,4394.8,4.135]
[1756808135903,0.704,4394.9,4394.8,3.2078]
[1756808136203,0.3088,4395.1,4394.7,0.4925]
[1756808136408,0.704,4394.8,4394.7,0.4925]
[1756808137209,0.704,4394.8,4394.5,0.229]
[1756808137507,0.704,4394.7,4394.6,0.2069]
[1756808139107,0.704,4394.7,4394.6,0.5127]
[1756808139906,0.704,4394.7,4394.6,0.7186]
[1756808143810,0.704,4394.7,4394.4,0.0375]
[1756808144505,0.308,4395.0,4394.7,0.3058]
[1756808144707,0.308,4395.0,4394.6,0.4001]
[1756808144708,5.344,4395.1,4395.0,0.7059]
[1756808145001,3.2078,4395.7,4395.0,0.7543]
[1756808145202,0.308,4395.6,4395.1,0.3058]
[1756808145409,0.7078,4395.6,4395.5,0.1942]
[1756808149110,1.32254522,4395.6,4395.5,0.1942]
[1756808149613,0.1957,4394.8,4394.7,0.4232]
[1756808149813,0.1957,4394.8,4394.7,0.6291]
[1756808150202,0.1957,4394.8,4394.7,0.9349]
[1756808151309,0.308,4395.1,4394.7,0.6291]
[1756808151516,0.308,4395.1,4395.0,0.7059]
[1756808151914,0.308,4395.5,4395.0,0.4001]
[1756808152215,0.5037,4395.2,4395.1,0.7059]
[1756808152514,0.5037,4395.2,4395.1,0.744]
[1756808153314,0.7078,4395.2,4395.1,0.744]
[1756808155818,0.5037,4395.2,4395.1,0.7059]
[1756808156219,0.766,4395.6,4395.1,0.7059]
[1756808156421,0.9231016,4395.5,4395.2,0.3058]
[1756808156719,1.1188016,4395.4,4395.3,0.7059]
[1756808156911,0.5037,4395.4,4395.3,0.7059]
[1756808158222,0.458,4395.6,4395.3,0.7059]
[1756808158422,0.5037,4395.4,4395.3,0.7059]
[1756808160012,0.1957,4395.4,4395.3,0.7059]
[1756808160922,0.458,4395.6,4395.4,0.3058]
[1756808161222,0.458,4395.6,4395.5,0.4001]
[1756808161424,1.07306877,4395.6,4395.5,0.4001]
[1756808161611,1.07306877,4395.6,4395.5,0.7059]
[1756808161817,0.458,4395.6,4395.5,0.7059]
[1756808162314,1.1658,4395.6,4395.5,0.5]
[1756808162512,1.78086613,4395.6,4395.1,0.0384]
[1756808162716,1.1658,4395.6,4395.5,0.5]
[1756808162916,1.78086799,4395.6,4395.5,0.5]
[1756808163526,1.78086799,4395.6,4395.5,0.1942]
[1756808163726,1.78086799,4395.6,4395.1,0.0384]
[1756808163914,1.1658,4395.6,4395.1,0.0384]
[1756808164514,1.1658,4395.6,4395.2,0.3058]
[1756808164721,1.1658,4395.6,4395.1,0.0384]
[1756808164918,0.34541001,4395.5,4395.1,0.0384]
[1756808165118,0.7078,4395.2,4395.1,0.0384]
[1756808165327,4.53069133,4395.2,4395.1,0.0384]
[1756808165525,4.53069133,4395.2,4394.5,0.3058]
[1756808165721,3.9156,4395.2,4394.5,0.3058]
[1756808166332,0.3998,4395.1,4395.0,0.1942]
[1756808166620,0.1957,4395.1,4395.0,0.7059]
[1756808167018,0.308,4395.3,4395.0,0.7059]
[1756808167226,0.61515627,4395.2,4395.1,0.3058]
[1756808167426,0.61515627,4395.2,4395.1,0.7059]
[1756808167427,0.81085627,4395.2,4395.1,0.7059]
[1756808167827,1.11885627,4395.2,4395.1,0.7059]
[1756808168127,1.32295627,4395.2,4395.1,0.7059]
[1756808171832,0.8138,4395.0,4394.9,0.0391]
[1756808172131,1.42927634,4395.0,4394.9,0.0391]
[1756808172329,5.65680634,4395.0,4394.9,0.0391]
[1756808172829,0.4063,4394.2,4394.1,3.50838464]
[1756808173028,0.6928,4394.2,4394.1,3.81798464]
[1756808175030,0.6928,4394.2,4394.1,3.50838464]
[1756808175236,0.6928,4394.2,4394.1,0.30058464]
[1756808176238,0.6928,4394.2,4394.1,0.61018464]
[1756808177041,0.6928,4394.2,4394.1,0.10468464]
[1756808177245,1.30800627,4394.2,4394.1,0.10468464]
[1756808177446,1.30800627,4394.2,4394.1,0.81068464]
[1756808178146,0.6928,4394.2,4394.1,0.81068464]
[1756808180950,0.1984,4394.2,4394.1,0.81068464]
[1756808181245,3.6141,4394.7,4394.6,0.1959]
[1756808181451,4.51523418,4394.7,4394.6,0.1959]
[1756808181751,4.51523418,4394.7,4394.4,0.3096]
[1756808181946,0.6928,4394.5,4394.4,0.5055]
[1756808182151,0.6928,4394.5,4394.4,0.1959]
[1756808183651,0.6928,4394.5,4394.4,0.5055]
[1756808183947,0.6928,4394.5,4394.1,0.41428464]
[1756808184250,0.6928,4394.3,4394.2,0.5055]
[1756808185753,0.6928,4394.3,4394.2,0.1959]
[1756808185953,0.6928,4394.3,4394.1,0.10468464]
[1756808188449,0.121,4394.5,4394.1,0.10468464]
[1756808188450,3.9006,4394.2,4394.1,0.10468464]
[1756808188756,4.51503386,4394.2,4394.1,0.10468464]
[1756808191357,4.74403386,4394.2,4394.1,0.10468464]
[1756808191957,4.74403386,4394.2,4394.1,0.61018464]
[1756808192455,0.4063,4391.9,4391.7,2.85189911]
[1756808192755,0.121,4393.0,4391.4,0.3096]
[1756808192756,0.6928,4391.7,4391.4,0.3096]
[1756808192961,0.6928,4391.7,4391.0,0.3096]
[1756808193149,3.2078,4391.2,4391.1,0.5055]
[1756808193352,3.80163677,4391.2,4391.1,0.5055]
[1756808193657,4.08813677,4391.2,4391.1,0.7385]
[1756808194355,4.08813677,4391.2,4391.1,0.4289]
[1756808197161,4.08813677,4391.2,4391.1,0.7385]
[1756808197851,4.13097683,4391.2,4391.1,0.7385]
[1756808198448,4.13097683,4391.2,4391.1,0.5055]
[1756808199356,4.13097683,4391.2,4391.1,0.706]
[1756808200757,3.43817683,4391.2,4391.1,0.706]
[1756808201159,0.23037683,4391.2,4391.1,0.706]
[1756808201356,0.23015765,4391.2,4391.1,0.9296]
[1756808201552,0.43575765,4391.2,4391.1,0.9296]
[1756808201757,0.93225765,4391.2,4391.1,0.9296]
[1756808201953,0.93221403,4391.2,4391.1,0.9296]
[1756808202353,0.93218538,4391.2,4391.1,0.4961]
[1756808202554,0.93218538,4391.2,4391.1,0.233]
[1756808202959,0.93218538,4391.2,4391.1,0.4382]
[1756808203158,0.63528538,4391.2,4391.1,0.9446]
[1756808203356,0.93218538,4391.2,4391.1,0.7116]
[1756808203557,0.93218538,4391.2,4391.1,0.9446]
[1756808206859,0.23008538,4391.2,4391.1,0.9446]
[1756808207067,0.43568538,4391.2,4391.1,0.9446]
[1756808207262,0.23008538,4391.2,4391.1,0.9446]
[1756808207954,0.23008538,4391.2,4391.1,5.17233]
[1756808208162,0.1138,4391.4,4391.2,0.3002]
[1756808208360,0.1138,4391.4,4391.3,0.7116]
[1756808208561,3.2078,4391.8,4391.4,0.3002]
[1756808208759,0.22168852,4391.7,4391.6,0.4114]
[1756808208959,0.22168852,4391.7,4391.6,0.7116]
[1756808210663,3.2078,4391.8,4391.7,0.3002]
[1756808210854,3.62633298,4391.8,4391.7,0.9446]
[1756808211867,4.12283298,4391.8,4391.7,0.7116]
[1756808212066,4.12288678,4391.8,4391.7,0.9446]
[1756808212662,4.12295746,4391.8,4391.7,0.9446]
[1756808212859,4.12295746,4391.8,4391.1,40.8]
[1756808213166,3.9099,4391.8,4391.7,0.7116]
[1756808213368,4.12303461,4391.8,4391.7,0.7116]
[1756808213669,3.82613461,4391.8,4391.7,0.7116]
[1756808213870,3.62653461,4391.8,4391.7,0.7116]
[1756808214469,3.42093461,4391.8,4391.7,0.7116]
[1756808218570,0.21313461,4391.8,4391.7,0.7116]
[1756808218973,0.21313461,4391.8,4391.7,0.9436]
[1756808219965,0.61833461,4391.8,4391.7,0.232]
[1756808220269,0.61833461,4391.8,4391.7,0.9436]
[1756808220469,0.91523461,4391.8,4391.7,0.9436]
[1756808221372,0.41873461,4391.8,4391.7,0.9436]
[1756808221773,0.2056,4391.8,4391.7,0.9436]
[1756808221975,0.41964351,4391.8,4391.7,0.9436]
[1756808222375,0.2969,4391.6,4390.4,3.2078]
[1756808222571,0.2056,4389.7,4389.6,0.7116]
[1756808222776,3.42202667,4389.7,4389.6,0.90495338]
[1756808223281,4.12412667,4389.7,4389.6,0.90495338]
[1756808225274,4.12412667,4389.7,4389.6,0.67195338]
[1756808225475,4.12412667,4389.7,4389.6,0.90495338]
[1756808225682,4.12412667,4389.7,4389.6,0.39855338]
[1756808226180,4.12412667,4389.7,4389.6,0.16555338]
[1756808226376,4.12412667,4389.7,4389.3,0.3002]
[1756808226582,0.7021,4389.5,4389.3,0.3002]
[1756808226777,0.7021,4389.5,4389.4,0.233]
[1756808227077,0.61142161,4389.5,4389.4,0.233]
[1756808227278,0.90832161,4389.5,4389.4,0.233]
[1756808227477,0.90832161,4389.5,4389.4,0.4382]
[1756808227778,0.90832161,4389.5,4389.4,0.7384]
[1756808229678,0.3042,4389.4,4389.2,33.0798]
[1756808229883,0.6987,4389.4,4389.3,0.4396]
[1756808230183,0.90466863,4389.4,4389.3,0.7254]
[1756808230378,0.90466863,4389.4,4389.3,0.4924]
[1756808230583,0.90466863,4389.4,4389.3,0.7254]
[1756808230779,0.6987,4389.4,4389.3,0.9183]
[1756808232577,3.4042,4390.2,4390.1,0.3995]
[1756808232779,3.2078,4390.8,4390.2,0.2858]
[1756808233082,0.58940981,4390.7,4390.6,0.6853]
[1756808233279,0.58940981,4390.7,4390.6,0.9193]
[1756808233584,0.58940326,4390.7,4390.6,0.9193]
[1756808234781,0.89360326,4390.7,4390.1,40.8]
[1756808234981,0.19490326,4390.6,4390.2,0.6335]
[1756808235181,0.39130326,4390.6,4390.5,0.3995]
[1756808235378,0.39130326,4390.6,4390.5,0.6853]
[1756808235681,0.58940326,4390.6,4390.5,0.6853]
[1756808236886,0.39130326,4390.6,4390.5,0.9193]
[1756808240488,0.39130326,4390.6,4390.5,0.6853]
[1756808240688,0.1964,4390.6,4390.5,0.9193]
[1756808244684,3.2078,4390.8,4390.6,0.2858]
[1756808244889,3.2078,4390.8,4390.7,0.3995]
[1756808245091,3.2078,4390.8,4390.7,0.6853]
[1756808247389,3.9065,4390.8,4390.7,0.5188]
[1756808247590,3.9065,4390.8,4390.7,0.7254]
[1756808248190,3.6023,4390.8,4390.7,0.9183]
[1756808248788,3.4042,4390.8,4390.7,0.9183]
[1756808248997,3.2078,4390.8,4390.7,0.9183]
[1756808249196,3.59261121,4390.8,4390.7,0.9183]
[1756808249995,3.4042,4390.8,4390.7,0.9183]
[1756808250194,3.6023,4390.8,4390.7,0.9183]
[1756808250386,3.2078,4390.8,4390.7,0.9183]
[1756808251689,3.2078,4390.8,4390.7,41.4853]
[1756808251896,3.2078,4390.8,4390.7,41.7183]
[1756808252698,3.39636461,4390.8,4390.7,41.7183]
[1756808252896,3.2078,4390.8,4390.7,41.7183]
[1756808254497,0.1138,4391.0,4390.8,0.2858]
[1756808254800,0.1138,4391.0,4390.9,0.6853]
[1756808254996,0.1885617,4391.2,4390.9,0.6853]
[1756808255201,3.2078,4391.3,4390.3,32.802]
[1756808255202,0.3042,4391.0,4390.4,0.2858]
[1756808255391,0.1964,4390.5,4390.4,0.6853]
[1756808255596,3.2078,4390.8,4390.5,0.2858]
[1756808255790,3.4042,4390.8,4390.7,0.6853]
[1756808255999,3.59276206,4390.8,4390.7,0.9183]
[1756808256599,3.4042,4390.8,4390.7,0.9183]
[1756808257003,3.6023,4390.8,4390.7,0.9183]
[1756808257302,3.79088769,4390.8,4390.7,0.9183]
[1756808257704,3.59278815,4390.8,4390.7,0.9183]
[1756808260306,3.79088815,4390.8,4390.7,0.9183]
[1756808260501,4.09318815,4390.8,4390.7,0.9183]
[1756808261406,3.79088815,4390.8,4390.7,0.9183]
[1756808264809,3.79124819,4390.8,4390.7,0.9183]
[1756808266504,3.79194819,4390.8,4390.7,0.6853]
[1756808266807,4.09424819,4390.8,4390.7,0.9183]
[1756808268609,3.79194819,4390.8,4390.7,0.9183]
[1756808268810,3.59314819,4390.8,4390.7,0.9183]
[1756808271017,3.79194819,4390.8,4390.7,0.9183]
[1756808271415,4.09424819,4390.8,4390.7,0.9183]
[1756808272617,4.09424819,4390.8,4390.7,0.7254]
[1756808272817,4.09424819,4390.8,4390.7,0.9259]
[1756808273419,4.09424819,4390.8,4390.7,0.232]
[1756808274318,4.09424819,4390.8,4390.7,0.5225]
[1756808274515,4.09424819,4390.8,4390.7,0.7209]
[1756808274716,4.09424819,4390.8,4390.7,0.5225]
[1756808275617,4.09440534,4390.8,4390.7,0.5225]
[1756808276921,4.09440534,4390.8,4390.7,0.232]
[1756808277415,4.09440534,4390.8,4390.7,0.5225]
[1756808278520,4.09440534,4390.8,4390.7,0.7209]
[1756808280522,4.09440534,4390.8,4390.7,0.9214]
[1756808282725,4.09440534,4390.8,4390.7,0.7209]
[1756808284026,4.09440534,4390.8,4390.7,0.9214]
[1756808284528,4.09440534,4390.8,4390.7,0.7209]
[1756808285128,3.9053,4390.8,4390.7,0.7209]
[1756808285328,4.09450943,4390.8,4390.7,0.7209]
[1756808285835,4.09450943,4390.8,4390.7,0.5225]
[1756808287225,4.09450943,4390.8,4390.7,0.2905]
[1756808287530,4.09450943,4390.8,4390.7,0.232]
[1756808287726,4.09450943,4390.8,4390.7,0.5225]
[1756808289526,4.09450943,4390.8,4390.7,0.5225]
[1756808290831,4.09450943,4390.8,4390.7,0.232]
[1756808291236,4.09450943,4390.8,4390.7,0.5346]
[1756808292034,4.09450943,4390.8,4390.7,0.3026]
[1756808292227,4.09450943,4390.8,4390.7,0.5346]
[1756808294225,4.09450943,4390.8,4390.7,0.7431]
[1756808294431,0.88670943,4390.8,4390.7,0.7431]
[1756808294629,0.1138,4391.0,4390.7,1.16194999]
[1756808294823,3.0590072,4391.3,4391.2,0.7022]
[1756808295029,3.24820604,4391.3,4391.2,0.9342]
[1756808295230,3.0590072,4391.3,4391.2,41.7342]
[1756808295626,2.8546072,4391.3,4391.2,41.91821318]
[1756808296027,2.8546072,4391.3,4391.2,41.68621318]
[1756808296241,3.34352221,4391.3,4391.2,40.8]
[1756808296432,3.34352221,4391.3,4391.2,41.032]
[1756808297335,3.75722221,4391.3,4391.2,0.232]
[1756808297536,3.75722221,4391.3,4391.2,0.5346]
[1756808297930,3.75722221,4391.3,4391.2,0.232]
[1756808298933,3.75722221,4391.3,4391.2,0.231]
[1756808300534,0.2999,4391.2,4390.4,41.1026]
[1756808300734,0.2999,4391.2,4390.3,32.802]
[1756808300735,0.2999,4390.4,4390.3,32.802]
[1756808300934,0.48891501,4390.4,4390.3,32.802]
[1756808301146,0.48891501,4390.4,4390.3,0.231]
[1756808301147,0.90261501,4390.4,4390.3,0.231]
[1756808302135,0.90261501,4390.4,4389.8,0.3026]
[1756808302337,0.7136,4390.0,4389.9,0.5346]
[1756808302535,0.90261501,4390.0,4389.9,0.5346]
[1756808303447,0.90261501,4390.0,4389.9,0.3026]
[1756808303648,0.90261501,4390.0,4389.9,0.5336]
[1756808304263,0.2999,4389.9,4389.6,40.8]
[1756808304449,3.7121,4389.7,4389.6,40.8]
[1756808304652,3.90111501,4389.7,4389.6,41.031]
[1756808304848,3.90111501,4389.7,4389.6,40.8]
[1756808305148,3.90111501,4389.7,4389.6,41.031]
[1756808305844,3.90111501,4389.7,4389.6,41.3336]
[1756808306547,3.7121,4389.7,4389.6,41.3336]
[1756808306748,3.90087143,4389.7,4389.6,41.3336]
[1756808307554,3.90080853,4389.7,4389.6,41.3336]
[1756808308853,3.90080853,4389.7,4389.6,41.031]
[1756808309749,3.90080853,4389.7,4389.6,41.3336]
[1756808310747,4.11010853,4389.7,4389.6,0.7421]
[1756808311453,4.11010853,4389.7,4389.6,0.3026]
[1756808311653,4.11010853,4389.7,4389.6,0.5336]
[1756808312250,4.11010853,4389.7,4389.6,0.3026]
[1756808312567,4.11010853,4389.7,4389.6,0.5336]
[1756808312755,3.81020853,4389.7,4389.6,0.231]
[1756808312953,4.11010853,4389.7,4389.6,0.231]
[1756808313558,4.11010853,4389.7,4389.6,0.5336]
[1756808314551,4.11010853,4389.7,4389.6,0.231]
[1756808314953,3.81020853,4389.7,4389.6,0.9332]
[1756808315157,3.4122,4389.7,4389.6,0.9332]
[1756808315661,3.2078,4389.7,4389.6,0.9332]
[1756808317461,3.4122,4389.7,4389.6,0.9332]
[1756808319864,3.9151,4389.7,4389.6,0.9332]
[1756808321566,3.9151,4389.7,4389.6,0.3026]
[1756808321861,0.2024,4389.2,4389.1,40.8]
[1756808322059,3.7196,4389.2,4389.1,41.031]
[1756808322261,3.7196,4389.2,4389.1,41.3285]
[1756808322967,3.9131,4389.2,4389.1,0.5285]
[1756808324069,3.9131,4389.2,4389.1,0.2975]
[1756808324265,3.9131,4389.2,4389.1,0.5285]
[1756808324566,3.9131,4389.2,4389.1,0.7264]
[1756808327363,4.10185082,4389.2,4389.1,0.7264]
[1756808327566,3.79245082,4389.2,4389.1,0.9232]
[1756808327966,3.4102,4389.2,4389.1,0.9232]
[1756808328266,3.59903458,4389.2,4389.1,0.9232]
[1756808329658,3.79253458,4389.2,4389.1,0.9232]
[1756808329863,4.10193458,4389.2,4389.1,0.9232]
[1756808330359,4.10193458,4389.2,4389.1,0.4954]
[1756808330565,4.10193458,4389.2,4389.1,0.5285]
[1756808330965,4.10193458,4389.2,4389.1,0.231]
[1756808331167,4.10193458,4389.2,4389.1,0.7264]
[1756808331367,3.79253458,4389.2,4389.1,0.9232]
[1756808331758,3.59903458,4389.2,4389.1,0.9232]
[1756808333567,3.60149421,4389.2,4389.1,0.9232]
[1756808333871,3.60149363,4389.2,4389.1,0.9232]
[1756808335373,3.60149363,4389.2,4389.1,0.5285]
[1756808335374,4.10439363,4389.2,4389.1,0.5285]
[1756808335761,4.10439363,4389.2,4389.1,0.231]
[1756808336167,4.10444768,4389.2,4389.1,0.231]
[1756808336470,3.79504768,4389.2,4388.9,73.597]
[1756808336670,3.9131,4389.2,4389.1,0.231]
[1756808336871,4.10445,4389.2,4389.1,0.231]
[1756808337075,0.7053,4389.1,4389.0,0.4954]
[1756808337271,0.89665,4389.1,4389.0,0.7264]
[1756808339177,0.89665325,4389.1,4389.0,0.7264]
[1756808341583,0.89665325,4389.1,4389.0,0.231]
[1756808341874,0.89665325,4389.1,4389.0,0.5285]
[1756808342279,0.89665325,4389.1,4389.0,0.4954]
[1756808342579,0.39375325,4389.1,4389.0,0.9232]
[1756808342780,0.89665325,4389.1,4389.0,0.9232]
[1756808342981,0.89665325,4389.1,4389.0,0.6922]
[1756808343181,0.89665325,4389.1,4389.0,0.4954]
[1756808343477,0.89665325,4389.1,4389.0,0.7264]
[1756808344775,0.89665325,4389.1,4389.0,0.5285]
[1756808345175,0.89661676,4389.1,4389.0,0.5285]
[1756808347382,0.89661676,4389.1,4389.0,0.231]
[1756808347886,0.89661676,4389.1,4389.0,0.7264]
[1756808348187,0.89661676,4389.1,4389.0,0.9232]
[1756808348792,0.89657875,4389.1,4389.0,0.9232]
[1756808349384,0.38057875,4389.1,4389.0,0.9232]
[1756808349683,0.88337875,4389.1,4389.0,0.9232]
[1756808350083,0.88337875,4389.1,4389.0,0.7264]
[1756808350278,0.3133,4389.0,4388.3,0.3039]
[1756808350585,0.6921,4388.4,4388.3,0.4934]
[1756808350781,0.88337875,4388.4,4388.3,0.7244]
[1756808352387,0.88337875,4388.4,4388.3,0.5349]
[1756808353386,0.88337875,4388.4,4387.9,40.8]
[1756808353387,0.57007875,4388.4,4388.0,0.3039]
[1756808353586,0.3133,4388.2,4388.1,0.5349]
[1756808353776,4.09117875,4388.2,4387.9,40.8]
[1756808353980,0.88337875,4388.1,4388.0,0.7244]
[1756808355482,0.38057875,4388.1,4388.0,0.9227]
[1756808356183,0.19127875,4388.1,4388.0,1.0402]
[1756808356683,0.38057875,4388.1,4388.0,1.0402]
[1756808357183,0.38057875,4388.1,4388.0,0.9227]
[1756808357681,0.38057875,4388.1,4388.0,0.6917]
[1756808357880,0.38057875,4388.1,4388.0,0.9227]
[1756808358890,0.88337875,4388.1,4388.0,0.9227]
[1756808359514,0.88292364,4388.1,4388.0,0.9227]
[1756808359683,0.88292364,4388.1,4388.0,0.6917]
[1756808360283,0.88289782,4388.1,4388.0,0.7244]
[1756808360478,0.88289782,4388.1,4388.0,0.4934]
[1756808360680,0.88289782,4388.1,4388.0,0.5349]
[1756808360882,0.88289782,4388.1,4387.7,0.3039]
[1756808361086,0.3788,4387.9,4387.8,0.5349]
[1756808361287,0.88289782,4387.9,4387.8,0.5349]
[1756808361891,0.88289782,4387.9,4387.8,0.7244]
[1756808362185,0.3133,4387.8,4386.8,0.3039]
[1756808362484,3.5866,4387.5,4387.4,0.6917]
[1756808362690,3.5866,4387.5,4387.4,41.7227]
[1756808362888,3.3971,4387.5,4387.4,41.7227]
[1756808365390,3.58820341,4387.5,4387.4,41.7227]
[1756808366388,3.3971,4387.5,4387.4,41.7227]
[1756808366810,3.9014594,4387.5,4387.4,41.7227]
[1756808367390,3.7104,4387.5,4387.4,41.7227]
[1756808368088,4.09094073,4387.5,4387.4,0.6917]
[1756808368486,4.09094073,4387.5,4387.4,0.9227]
[1756808369889,3.58814073,4387.5,4387.4,0.9227]
[1756808370189,3.39876858,4387.5,4387.4,0.9227]
[1756808370495,3.58806858,4387.5,4387.4,0.9227]
[1756808371008,3.2078,4387.5,4387.4,0.9227]
[1756808371190,3.8999,4387.5,4387.4,0.9227]
[1756808371396,3.8999,4387.5,4387.4,0.231]
[1756808371397,3.77746137,4387.5,4387.4,0.231]
[1756808371591,3.77746137,4387.5,4387.4,0.7244]
[1756808371788,3.58796137,4387.5,4387.4,0.9227]
[1756808371989,3.2078,4387.5,4387.4,0.9227]
[1756808372793,3.39865729,4387.5,4387.4,0.9227]